fUSD/lending_fUSD_20250523
["ID","MTS","AMOUNT","RATE_DAILY","PERIOD"]
[362113221,1748002283017,-420.0,0.00028082,4]
[362113222,1748002283026,-420.0,0.00028082,4]
[362113223,1748002283036,-420.0,0.00028082,4]
[362113224,1748002283045,-420.0,0.00028082,4]
[362113225,1748002283054,-231.82,0.00028082,4]
[362113226,1748002283064,-420.0,0.00028082,4]
[362113227,1748002283073,-420.0,0.00028082,4]
[362113228,1748002283083,-420.0,0.00028082,4]
[362113229,1748002283093,-220.00386862,0.00028082,4]
[362113230,1748002283102,-420.0,0.00028082,4]
[362113231,1748002283111,-420.0,0.00028082,4]
[362113232,1748002283121,-420.0,0.00028082,4]
[362113233,1748002283131,-420.0,0.00028082,4]
[362113234,1748002283140,-420.0,0.00028082,4]
[362113235,1748002283150,-420.0,0.00028082,4]
[362113236,1748002283159,-420.0,0.00028082,4]
[362113237,1748002283169,-420.0,0.00028082,4]
[362113238,1748002283178,-420.0,0.00028082,4]
[362113239,1748002283188,-420.0,0.00028082,4]
[362113240,1748002283197,-420.0,0.00028082,4]
[362113241,1748002283205,-538.84,0.00028082,4]
[362113242,1748002283215,-420.0,0.00028082,4]
[362113243,1748002283225,-420.0,0.00028082,4]
[362113244,1748002283235,-471.66449883,0.00028082,4]
[362113245,1748002283245,-420.0,0.00028082,4]
[362113246,1748002283258,-420.0,0.00028082,4]
[362113247,1748002283267,-699.81,0.00028082,4]
[362113248,1748002283278,-934.23,0.00028082,4]
[362113249,1748002283288,-420.0,0.00028082,4]
[362113250,1748002283298,-420.0,0.00028082,4]
[362113251,1748002283308,-420.0,0.00028082,4]
[362113252,1748002283318,-420.0,0.00028082,4]
[362113253,1748002283327,-193.79,0.00028082,4]
[362113254,1748002283337,-420.0,0.00028082,4]
[362113255,1748002283346,-420.0,0.00028082,4]
[362113256,1748002283356,-420.0,0.00028082,4]
[362113257,1748002283365,-327.0,0.00028082,4]
[362113258,1748002283375,-420.0,0.00028082,4]
[362113259,1748002283385,-419.47,0.00028082,4]
[362113260,1748002283395,-420.0,0.00028082,4]
[362113261,1748002283404,-420.0,0.00028082,4]
[362113262,1748002283414,-420.0,0.00028082,4]
[362113263,1748002283423,-420.0,0.00028082,4]
[362113264,1748002283433,-250.0,0.00028082,4]
[362113265,1748002283443,-420.0,0.00028082,4]
[362113266,1748002283452,-420.0,0.00028082,4]
[362113267,1748002283462,-420.0,0.00028082,4]
[362113268,1748002283473,-420.0,0.00028082,4]
[362113269,1748002283483,-420.0,0.00028082,4]
[362113270,1748002283492,-420.0,0.00028082,4]
[362113271,1748002283503,-420.0,0.00028082,4]
[362113272,1748002283513,-420.0,0.00028082,4]
[362113273,1748002283522,-420.0,0.00028082,4]
[362113274,1748002283532,-420.0,0.00028082,4]
[362113275,1748002283542,-420.0,0.00028082,4]
[362113276,1748002283552,-420.0,0.00028082,4]
[362113277,1748002283562,-420.0,0.00028082,4]
[362113278,1748002283572,-569.36,0.00028082,4]
[362113279,1748002283581,-420.0,0.00028082,4]
[362113280,1748002283591,-765.64,0.00028082,4]
[362113281,1748002283600,-420.0,0.00028082,4]
[362113282,1748002283610,-420.0,0.00028082,4]
[362113283,1748002283619,-420.0,0.00028082,4]
[362113284,1748002283629,-420.0,0.00028082,4]
[362113285,1748002283640,-568.9,0.00028082,4]
[362113286,1748002283650,-543.07,0.00028082,4]
[362113287,1748002283660,-333.9393262,0.00028082,4]
[362113288,1748002283669,-420.0,0.00028082,4]
[362113289,1748002283679,-420.0,0.00028082,4]
[362113290,1748002283689,-420.0,0.00028082,4]
[362113291,1748002283700,-420.0,0.00028082,4]
[362113292,1748002283709,-420.0,0.00028082,4]
[362113293,1748002283718,-420.0,0.00028082,4]
[362113294,1748002283728,-420.0,0.00028082,4]
[362113295,1748002283737,-420.0,0.00028082,4]
[362113296,1748002283749,-286.96466295,0.00028082,4]
[362113297,1748002283759,-368.6,0.00028082,4]
[362113298,1748002283771,-420.0,0.00028082,4]
[362113299,1748002283781,-420.0,0.00028082,4]
[362113300,1748002283791,-214.92,0.00028082,4]
[362113301,1748002283800,-420.0,0.00028082,4]
[362113302,1748002283810,-420.0,0.00028082,4]
[362113303,1748002283822,-420.0,0.00028082,4]
[362113304,1748002283832,-420.0,0.00028082,4]
[362113305,1748002283843,-420.0,0.00028082,4]
[362113306,1748002283852,-420.0,0.00028082,4]
[362113307,1748002283862,-420.0,0.00028082,4]
[362113308,1748002283872,-420.0,0.00028082,4]
[362113309,1748002283881,-420.0,0.00028082,4]
[362113310,1748002283891,-152.96,0.00028082,4]
[362113311,1748002283901,-420.0,0.00028082,4]
[362113312,1748002283910,-420.0,0.00028082,4]
[362113313,1748002283920,-420.0,0.00028082,4]
[362113314,1748002283930,-420.0,0.00028082,4]
[362113315,1748002283940,-420.0,0.00028082,4]
[362113316,1748002283951,-420.0,0.00028082,4]
[362113317,1748002283961,-420.0,0.00028082,4]
[362113318,1748002283971,-420.0,0.00028082,4]
[362113319,1748002283981,-420.0,0.00028082,4]
[362113320,1748002283991,-420.0,0.00028082,4]
[362113321,1748002284003,-220.3,0.00028082,4]
[362113322,1748002284011,-420.0,0.00028082,4]
[362113323,1748002284021,-420.0,0.00028082,4]
[362113324,1748002284031,-420.0,0.00028082,4]
[362113325,1748002284041,-420.0,0.00028082,4]
[362113326,1748002284051,-420.0,0.00028082,4]
[362113327,1748002284060,-420.0,0.00028082,4]
[362113328,1748002284070,-370.62,0.00028082,4]
[362113329,1748002284079,-420.0,0.00028082,4]
[362113330,1748002284088,-420.0,0.00028082,4]
[362113331,1748002284100,-1213.63,0.00028082,4]
[362113332,1748002284109,-373.10681595,0.00028082,4]
[362113333,1748002284119,-488.78,0.00028082,4]
[362113334,1748002284128,-420.0,0.00028082,4]
[362113335,1748002284138,-420.0,0.00028082,4]
[362113336,1748002284148,-2301.13,0.00028082,4]
[362113337,1748002284157,-420.0,0.00028082,4]
[362113338,1748002284166,-420.0,0.00028082,4]
[362113339,1748002284176,-420.0,0.00028082,4]
[362113340,1748002284185,-2104.51,0.00028082,4]
[362113341,1748002284195,-420.0,0.00028082,4]
[362113342,1748002284204,-1056.15,0.00028082,4]
[362113343,1748002284214,-420.0,0.00028082,4]
[362113344,1748002284224,-400.04965087,0.00028082,4]
[362113345,1748002284234,-420.0,0.00028082,4]
[362113346,1748002284243,-1235.93,0.00028082,4]
[362113347,1748002284256,-420.0,0.00028082,4]
[362113348,1748002284266,-544.37595355,0.00028082,4]
[362113349,1748002284275,-426.77,0.00028082,4]
[362113350,1748002284285,-420.0,0.00028082,4]
[362113351,1748002284295,-420.0,0.00028082,4]
[362113352,1748002284305,-420.0,0.00028082,4]
[362113353,1748002284315,-420.0,0.00028082,4]
[362113354,1748002284324,-820.55,0.00028082,4]
[362113355,1748002284334,-420.0,0.00028082,4]
[362113356,1748002284344,-2942.65,0.00028082,4]
[362113357,1748002284354,-420.0,0.00028082,4]
[362113358,1748002284363,-3091.64,0.00028082,4]
[362113359,1748002284373,-351.76,0.00028082,4]
[362113360,1748002284383,-420.0,0.00028082,4]
[362113361,1748002284393,-420.0,0.00028082,4]
[362113362,1748002284402,-285.10020279,0.00028082,4]
[362113363,1748002284412,-824.71,0.00028082,4]
[362113364,1748002284422,-1143.69,0.00028082,2]
[362113365,1748002284432,-420.0,0.00028082,4]
[362113366,1748002284442,-420.0,0.00028082,4]
[362113367,1748002284451,-589.55,0.00028082,4]
[362113368,1748002284461,-930.62,0.00028082,4]
[362113369,1748002284471,-420.0,0.00028082,4]
[362113370,1748002284481,-420.0,0.00028082,4]
[362113371,1748002284490,-420.0,0.00028082,4]
[362113372,1748002284500,-420.0,0.00028082,4]
[362113373,1748002284510,-420.0,0.00028082,4]
[362113374,1748002284520,-1759.35,0.00028082,4]
[362113375,1748002284530,-420.0,0.00028082,4]
[362113376,1748002284539,-420.0,0.00028082,4]
[362113377,1748002284549,-420.0,0.00028082,4]
[362113378,1748002284559,-420.0,0.00028082,4]
[362113379,1748002284569,-420.0,0.00028082,4]
[362113380,1748002284579,-420.0,0.00028082,4]
[362113381,1748002284588,-420.0,0.00028082,4]
[362113382,1748002284597,-519.19,0.00028082,4]
[362113383,1748002284607,-420.0,0.00028082,4]
[362113384,1748002284616,-420.0,0.00028082,4]
[362113385,1748002284626,-420.0,0.00028082,4]
[362113386,1748002284636,-420.0,0.00028082,4]
[362113387,1748002284646,-420.0,0.00028082,4]
[362113388,1748002284657,-420.0,0.00028082,4]
[362113389,1748002284667,-420.0,0.00028082,4]
[362113390,1748002284677,-327.53,0.00028082,4]
[362113391,1748002284687,-184.52,0.00028082,4]
[362113392,1748002284697,-420.0,0.00028082,4]
[362113393,1748002284706,-420.0,0.00028082,4]
[362113394,1748002284716,-420.0,0.00028082,4]
[362113395,1748002284726,-420.0,0.00028082,4]
[362113396,1748002284736,-494.39,0.00028082,4]
[362113397,1748002284746,-2941.71,0.00028082,4]
[362113398,1748002284760,-737.93,0.00028082,4]
[362113399,1748002284773,-420.0,0.00028082,4]
[362113400,1748002284784,-420.0,0.00028082,4]
[362113401,1748002284795,-314.34,0.00028082,4]
[362113402,1748002284805,-420.0,0.00028082,4]
[362113403,1748002284816,-446.17639141,0.00028082,4]
[362113404,1748002284831,-420.0,0.00028082,4]
[362113405,1748002284841,-420.0,0.00028082,4]
[362113406,1748002284851,-420.0,0.00028082,4]
[362113407,1748002284861,-420.0,0.00028082,4]
[362113408,1748002284871,-420.0,0.00028082,4]
[362113409,1748002284881,-420.0,0.00028082,4]
[362113410,1748002284893,-420.0,0.00028082,4]
[362113411,1748002284903,-420.0,0.00028082,4]
[362113412,1748002284913,-719.56,0.00028082,4]
[362113413,1748002284923,-420.0,0.00028082,4]
[362113414,1748002284933,-420.0,0.00028082,4]
[362113415,1748002284943,-420.0,0.00028082,4]
[362113416,1748002284953,-420.0,0.00028082,4]
[362113417,1748002284963,-420.0,0.00028082,4]
[362113418,1748002284973,-420.0,0.00028082,4]
[362113419,1748002284983,-420.0,0.00028082,4]
[362113420,1748002284992,-568.4,0.00028082,4]
[362113421,1748002285006,-420.0,0.00028082,4]
[362113422,1748002285016,-420.0,0.00028082,4]
[362113423,1748002285025,-1548.3,0.00028082,2]
[362113424,1748002285035,-586.0,0.00028082,4]
[362113425,1748002285045,-420.0,0.00028082,4]
[362113426,1748002285055,-7122.89,0.00028082,4]
[362113427,1748002285065,-545.4,0.00028082,4]
[362113428,1748002285075,-420.0,0.00028082,4]
[362113429,1748002285084,-420.0,0.00028082,4]
[362113430,1748002285094,-420.0,0.00028082,4]
[362113431,1748002285103,-420.0,0.00028082,4]
[362113432,1748002285113,-420.0,0.00028082,4]
[362113433,1748002285122,-420.0,0.00028082,4]
[362113434,1748002285132,-420.0,0.00028082,4]
[362113435,1748002285142,-420.0,0.00028082,4]
[362113436,1748002285151,-420.0,0.00028082,4]
[362113437,1748002285160,-420.0,0.00028082,4]
[362113438,1748002285170,-420.0,0.00028082,4]
[362113439,1748002285179,-309.43419268,0.00028082,4]
[362113440,1748002285190,-420.0,0.00028082,4]
[362113441,1748002285199,-420.0,0.00028082,4]
[362113442,1748002285209,-420.0,0.00028082,2]
[362113443,1748002285218,-420.0,0.00028082,4]
[362113444,1748002285227,-420.0,0.00028082,4]
[362113445,1748002285237,-468.82,0.00028082,4]
[362113446,1748002285246,-420.0,0.00028082,4]
[362113447,1748002285260,-420.0,0.00028082,4]
[362113448,1748002285270,-420.0,0.00028082,4]
[362113449,1748002285279,-420.0,0.00028082,4]
[362113450,1748002285289,-396.531783,0.00028082,4]
[362113451,1748002285298,-1068.14,0.00028082,4]
[362113452,1748002285308,-420.0,0.00028082,4]
[362113453,1748002285318,-475.1,0.00028082,4]
[362113454,1748002285327,-420.0,0.00028082,4]
[362113455,1748002285336,-420.0,0.00028082,4]
[362113456,1748002285346,-420.0,0.00028082,4]
[362113457,1748002285355,-420.0,0.00028082,4]
[362113458,1748002285365,-420.0,0.00028082,4]
[362113459,1748002285375,-420.0,0.00028082,4]
[362113460,1748002285384,-636.93,0.00028082,4]
[362113461,1748002285394,-356.83584233,0.00028082,4]
[362113462,1748002285404,-420.0,0.00028082,4]
[362113463,1748002285415,-285.95,0.00028082,4]
[362113464,1748002285425,-420.0,0.00028082,4]
[362113465,1748002285435,-420.0,0.00028082,4]
[362113466,1748002285444,-420.0,0.00028082,4]
[362113467,1748002285454,-1034.39,0.00028082,4]
[362113468,1748002285464,-222.926913,0.00028082,4]
[362113469,1748002285474,-420.0,0.00028082,4]
[362113470,1748002285484,-420.0,0.00028082,4]
[362113471,1748002285494,-420.0,0.00028082,2]
[362113472,1748002285507,-745.56,0.00028082,4]
[362113473,1748002285517,-420.0,0.00028082,4]
[362113474,1748002285527,-420.0,0.00028082,4]
[362113475,1748002285538,-375.0,0.000281,2]
[362113476,1748002285548,-766.0,0.000281,2]
[362113477,1748002285558,-500.0,0.00028106,2]
[362113478,1748002285570,-4954.73275507,0.00028125,2]
[362113479,1748002285581,-1021.0,0.000282,2]
[362113480,1748002285592,-151.0,0.00028219,7]
[362113481,1748002285602,-420.0,0.00028219,4]
[362113482,1748002285612,-420.0,0.00028219,4]
[362113483,1748002285622,-220.23381062,0.00028219,4]
[362113484,1748002285632,-420.0,0.00028219,4]
[362113485,1748002285642,-420.0,0.00028219,4]
[362113486,1748002285652,-409.73,0.00028219,4]
[362113487,1748002285664,-278.14,0.00028219,4]
[362113488,1748002285674,-420.0,0.00028219,4]
[362113489,1748002285684,-420.0,0.00028219,4]
[362113490,1748002285695,-185.04,0.00028219,4]
[362113491,1748002285705,-387.58,0.00028219,4]
[362113492,1748002285715,-420.0,0.00028219,4]
[362113493,1748002285724,-420.0,0.00028219,4]
[362113494,1748002285734,-420.0,0.00028219,4]
[362113495,1748002285744,-420.0,0.00028219,4]
[362113496,1748002285760,-447.18747567,0.00028219,4]
[362113497,1748002285771,-420.0,0.00028219,4]
[362113498,1748002285781,-420.0,0.00028219,4]
[362113499,1748002285791,-420.0,0.00028219,4]
[362113500,1748002285803,-420.0,0.00028219,4]
[362113501,1748002285813,-420.0,0.00028219,4]
[362113502,1748002285823,-420.0,0.00028219,4]
[362113503,1748002285834,-420.0,0.00028219,4]
[362113504,1748002285844,-420.0,0.00028219,4]
[362113505,1748002285855,-420.0,0.00028219,4]
[362113506,1748002285865,-420.0,0.00028219,4]
[362113507,1748002285876,-420.0,0.00028219,4]
[362113508,1748002285886,-420.0,0.00028219,4]
[362113509,1748002285896,-699.81,0.00028219,4]
[362113510,1748002285907,-934.23,0.00028219,4]
[362113511,1748002285918,-420.0,0.00028219,4]
[362113512,1748002285928,-506.18,0.00028219,4]
[362113513,1748002285939,-150.47,0.00028219,4]
[362113514,1748002285949,-420.0,0.00028219,4]
[362113515,1748002285959,-413.49,0.00028219,4]
[362113516,1748002285969,-516.19,0.00028219,4]
[362113517,1748002285979,-420.0,0.00028219,4]
[362113518,1748002285988,-327.55923029,0.00028219,4]
[362113519,1748002285999,-219.88299293,0.00028219,4]
[362113520,1748002286011,-420.0,0.00028219,4]
[362113521,1748002286022,-420.0,0.00028219,4]
[362113522,1748002286032,-550.5,0.00028219,4]
[362113523,1748002286041,-250.0,0.00028219,4]
[362113524,1748002286052,-293.33,0.00028219,4]
[362113525,1748002286062,-420.0,0.00028219,4]
[362113526,1748002286072,-420.0,0.00028219,4]
[362113527,1748002286082,-442.15,0.00028219,4]
[362113528,1748002286092,-420.0,0.00028219,4]
[362113529,1748002286102,-420.0,0.00028219,4]
[362113530,1748002286112,-420.0,0.00028219,4]
[362113531,1748002286122,-420.0,0.00028219,4]
[362113532,1748002286132,-420.0,0.00028219,4]
[362113533,1748002286142,-420.0,0.00028219,4]
[362113534,1748002286152,-335.86,0.00028219,4]
[362113535,1748002286162,-420.0,0.00028219,4]
[362113536,1748002286173,-152.614474,0.00028219,4]
[362113537,1748002286183,-216.49,0.00028219,4]
[362113538,1748002286194,-765.64,0.00028219,4]
[362113539,1748002286203,-420.0,0.00028219,4]
[362113540,1748002286213,-420.0,0.00028219,4]
[362113541,1748002286223,-420.0,0.00028219,4]
[362113542,1748002286233,-420.0,0.00028219,4]
[362113543,1748002286243,-388.8,0.00028219,4]
[362113544,1748002286252,-420.0,0.00028219,4]
[362113545,1748002286262,-162.29,0.00028219,4]
[362113546,1748002286272,-420.0,0.00028219,4]
[362113547,1748002286282,-201.35,0.00028219,4]
[362113548,1748002286292,-420.0,0.00028219,4]
[362113549,1748002286301,-241.89,0.00028219,4]
[362113550,1748002286311,-420.0,0.00028219,4]
[362113551,1748002286321,-420.0,0.00028219,4]
[362113552,1748002286331,-230.72,0.00028219,4]
[362113553,1748002286341,-420.0,0.00028219,4]
[362113554,1748002286350,-420.0,0.00028219,4]
[362113555,1748002286360,-420.0,0.00028219,4]
[362113556,1748002286370,-420.0,0.00028219,4]
[362113557,1748002286380,-379.35,0.00028219,4]
[362113558,1748002286390,-420.0,0.00028219,4]
[362113559,1748002286400,-263.3,0.00028219,4]
[362113560,1748002286409,-420.0,0.00028219,4]
[362113561,1748002286419,-420.0,0.00028219,4]
[362113562,1748002286430,-558.4,0.00028219,4]
[362113563,1748002286440,-420.0,0.00028219,4]
[362113564,1748002286450,-420.0,0.00028219,4]
[362113565,1748002286460,-420.0,0.00028219,4]
[362113566,1748002286470,-420.0,0.00028219,4]
[362113567,1748002286480,-420.0,0.00028219,4]
[362113568,1748002286490,-420.0,0.00028219,4]
[362113569,1748002286501,-348.72,0.00028219,4]
[362113570,1748002286511,-420.0,0.00028219,4]
[362113571,1748002286521,-420.0,0.00028219,4]
[362113572,1748002286531,-193.61,0.00028219,4]
[362113573,1748002286541,-420.0,0.00028219,4]
[362113574,1748002286551,-538.7,0.00028219,4]
[362113575,1748002286561,-420.0,0.00028219,4]
[362113576,1748002286571,-420.0,0.00028219,4]
[362113577,1748002286581,-420.0,0.00028219,4]
[362113578,1748002286591,-420.0,0.00028219,4]
[362113579,1748002286601,-363.41,0.00028219,4]
[362113580,1748002286610,-1213.63,0.00028219,4]
[362113581,1748002286620,-420.0,0.00028219,4]
[362113582,1748002286630,-420.0,0.00028219,4]
[362113583,1748002286639,-2301.13,0.00028219,4]
[362113584,1748002286649,-420.0,0.00028219,4]
[362113585,1748002286659,-420.0,0.00028219,4]
[362113586,1748002286669,-176.31,0.00028219,4]
[362113587,1748002286679,-2104.51,0.00028219,4]
[362113588,1748002286689,-420.0,0.00028219,4]
[362113589,1748002286699,-1056.15,0.00028219,4]
[362113590,1748002286709,-420.0,0.00028219,4]
[362113591,1748002286720,-154.62,0.00028219,4]
[362113592,1748002286730,-1235.93,0.00028219,4]
[362113593,1748002286740,-287.55999998,0.00028219,4]
[362113594,1748002286751,-420.0,0.00028219,4]
[362113595,1748002286761,-237.01,0.00028219,4]
[362113596,1748002286775,-420.0,0.00028219,4]
[362113597,1748002286786,-420.0,0.00028219,4]
[362113598,1748002286796,-820.55,0.00028219,4]
[362113599,1748002286807,-420.0,0.00028219,4]
[362113600,1748002286818,-2942.65,0.00028219,4]
[362113601,1748002286828,-420.0,0.00028219,4]
[362113602,1748002286837,-3091.64,0.00028219,4]
[362113603,1748002286848,-420.0,0.00028219,4]
[362113604,1748002286859,-200.86856316,0.00028219,4]
[362113605,1748002286869,-824.71,0.00028219,4]
[362113606,1748002286879,-1143.69,0.00028219,2]
[362113607,1748002286890,-420.0,0.00028219,4]
[362113608,1748002286900,-420.0,0.00028219,4]
[362113609,1748002286911,-589.55,0.00028219,4]
[362113610,1748002286921,-930.62,0.00028219,4]
[362113611,1748002286931,-398.84109912,0.00028219,4]
[362113612,1748002286942,-420.0,0.00028219,4]
[362113613,1748002286953,-420.0,0.00028219,4]
[362113614,1748002286963,-420.0,0.00028219,4]
[362113615,1748002286974,-1759.35,0.00028219,4]
[362113616,1748002286984,-363.54,0.00028219,4]
[362113617,1748002286994,-425.78440347,0.00028219,4]
[362113618,1748002287004,-420.0,0.00028219,4]
[362113619,1748002287014,-420.0,0.00028219,4]
[362113620,1748002287025,-420.0,0.00028219,4]
[362113621,1748002287035,-420.0,0.00028219,4]
[362113622,1748002287046,-420.0,0.00028219,4]
[362113623,1748002287056,-323.83,0.00028219,4]
[362113624,1748002287066,-420.0,0.00028219,4]
[362113625,1748002287076,-420.0,0.00028219,4]
[362113626,1748002287086,-420.0,0.00028219,4]
[362113627,1748002287096,-327.12,0.00028219,4]
[362113628,1748002287106,-420.0,0.00028219,4]
[362113629,1748002287116,-420.0,0.00028219,4]
[362113630,1748002287126,-420.0,0.00028219,4]
[362113631,1748002287136,-309.75,0.00028219,4]
[362113632,1748002287145,-428.8319065,0.00028219,4]
[362113633,1748002287156,-420.0,0.00028219,4]
[362113634,1748002287166,-420.0,0.00028219,4]
[362113635,1748002287176,-494.39,0.00028219,4]
[362113636,1748002287186,-2941.71,0.00028219,4]
[362113637,1748002287197,-737.93,0.00028219,4]
[362113638,1748002287207,-420.0,0.00028219,4]
[362113639,1748002287217,-420.0,0.00028219,4]
[362113640,1748002287227,-420.0,0.00028219,4]
[362113641,1748002287236,-420.0,0.00028219,4]
[362113642,1748002287246,-412.83523628,0.00028219,4]
[362113643,1748002287259,-420.0,0.00028219,4]
[362113644,1748002287268,-420.0,0.00028219,4]
[362113645,1748002287278,-420.0,0.00028219,4]
[362113646,1748002287290,-420.0,0.00028219,4]
[362113647,1748002287301,-420.0,0.00028219,4]
[362113648,1748002287311,-420.0,0.00028219,4]
[362113649,1748002287321,-719.56,0.00028219,4]
[362113650,1748002287332,-420.0,0.00028219,4]
[362113651,1748002287342,-420.0,0.00028219,4]
[362113652,1748002287352,-474.86,0.00028219,4]
[362113653,1748002287362,-420.0,0.00028219,4]
[362113654,1748002287372,-420.0,0.00028219,4]
[362113655,1748002287382,-420.0,0.00028219,4]
[362113656,1748002287393,-304.53,0.00028219,4]
[362113657,1748002287403,-420.0,0.00028219,4]
[362113658,1748002287413,-420.0,0.00028219,4]
[362113659,1748002287424,-1548.3,0.00028219,2]
[362113660,1748002287434,-586.0,0.00028219,4]
[362113661,1748002287444,-424.34,0.00028219,4]
[362113662,1748002287454,-7122.89,0.00028219,4]
[362113663,1748002287464,-420.0,0.00028219,4]
[362113664,1748002287474,-420.0,0.00028219,4]
[362113665,1748002287484,-420.0,0.00028219,4]
[362113666,1748002287494,-420.0,0.00028219,4]
[362113667,1748002287505,-491.38,0.00028219,4]
[362113668,1748002287515,-459.92357066,0.00028219,4]
[362113669,1748002287525,-420.0,0.00028219,4]
[362113670,1748002287534,-420.0,0.00028219,4]
[362113671,1748002287544,-398.63,0.00028219,4]
[362113672,1748002287554,-420.0,0.00028219,4]
[362113673,1748002287564,-420.0,0.00028219,4]
[362113674,1748002287575,-171.84,0.00028219,4]
[362113675,1748002287585,-420.0,0.00028219,4]
[362113676,1748002287595,-420.0,0.00028219,2]
[362113677,1748002287605,-420.0,0.00028219,4]
[362113678,1748002287615,-420.0,0.00028219,4]
[362113679,1748002287625,-420.0,0.00028219,4]
[362113680,1748002287635,-420.0,0.00028219,4]
[362113681,1748002287645,-420.0,0.00028219,4]
[362113682,1748002287655,-420.0,0.00028219,4]
[362113683,1748002287665,-396.531783,0.00028219,4]
[362113684,1748002287676,-1068.14,0.00028219,4]
[362113685,1748002287686,-420.0,0.00028219,4]
[362113686,1748002287696,-420.0,0.00028219,4]
[362113687,1748002287706,-366.47201009,0.00028219,4]
[362113688,1748002287717,-420.0,0.00028219,4]
[362113689,1748002287727,-420.0,0.00028219,4]
[362113690,1748002287737,-420.0,0.00028219,4]
[362113691,1748002287748,-420.0,0.00028219,4]
[362113692,1748002287763,-636.93,0.00028219,4]
[362113693,1748002287774,-420.0,0.00028219,4]
[362113694,1748002287785,-420.0,0.00028219,4]
[362113695,1748002287795,-420.0,0.00028219,4]
[362113696,1748002288031,-420.0,0.00028219,4]
[362113697,1748002288042,-1034.39,0.00028219,4]
[362113698,1748002288053,-222.926913,0.00028219,4]
[362113699,1748002288063,-420.0,0.00028219,4]
[362113700,1748002288072,-420.0,0.00028219,4]
[362113701,1748002288082,-420.0,0.00028219,2]
[362113702,1748002288092,-745.56,0.00028219,4]
[362113703,1748002288102,-420.0,0.00028219,4]
[362113704,1748002288112,-420.0,0.00028219,4]
[362113705,1748002288122,-509.37,0.00028219,2]
[362113706,1748002288131,-915.66,0.00028219,2]
[362113707,1748002288141,-500.5114786,0.00028221,5]
[362113708,1748002288151,-501.20711706,0.00028221,5]
[362113709,1748002288161,-462.50604744,0.00028245,18]
[362113710,1748002288171,-154.0,0.00028246,2]
[362113711,1748002288180,-6838.0,0.00028246,2]
[362113712,1748002288191,-4052.0,0.00028246,2]
[362113713,1748002288200,-881.0,0.00028246,2]
[362113714,1748002288210,-728.044,0.00028246,2]
[362113715,1748002288220,-10498.32057604,0.00028291,2]
[362113716,1748002288230,-6893.64930074,0.00028326,2]
[362113717,1748002288240,-420.0,0.00028356,4]
[362113718,1748002288249,-420.0,0.00028356,4]
[362113719,1748002288262,-420.0,0.00028356,4]
[362113720,1748002288272,-420.0,0.00028356,4]